bitfinex-derivatives/quotes_SOLF0:USTF0_20250714
["timestamp","ask_amount","ask_price","bid_price","bid_amount"]
[1752506274229,184.54,165.27,165.22,6.03269309]
[1752506274430,184.54,165.27,165.23,6.03269309]
[1752506274629,184.54,165.27,165.24,6.03269309]
[1752506274824,184.54,165.27,165.25,6.03269309]
[1752506275125,192.067294,165.27,165.16,7.527294]
[1752506275330,7.527294,165.25,165.17,6.04253452]
[1752506275530,184.54,165.27,165.18,6.04253452]
[1752506275531,7.527294,165.23,165.18,6.04253452]
[1752506275734,184.54,165.22,165.19,6.04253452]
[1752506275932,184.54,165.22,165.2,6.04253452]
[1752506276226,190.5911,165.22,165.21,6.04253452]
[1752506276423,190.5911,165.22,165.15,6.0534]
[1752506276424,184.54,165.22,165.15,6.0534]
[1752506276630,184.54,165.22,165.16,12.0978107]
[1752506276935,192.067294,165.22,165.17,6.0445107]
[1752506277136,184.54,165.22,165.12,7.527294]
[1752506277436,184.54,165.22,165.14,7.527294]
[1752506277635,190.5913,165.22,165.19,6.052]
[1752506277831,190.5913,165.22,165.2,6.04466578]
[1752506278032,184.54,165.22,165.14,7.527294]
[1752506278232,184.54,165.22,165.15,6.04493819]
[1752506278432,184.54,165.22,165.16,6.04493819]
[1752506278634,6.0524,165.19,165.17,6.04493819]
[1752506278834,6.0524,165.19,165.18,6.04493819]
[1752506279539,7.527294,165.19,165.08,5.01984902]
[1752506279728,7.527294,165.19,165.09,7.527294]
[1752506280129,6.0538,165.15,165.09,7.527294]
[1752506280332,7.527294,165.19,165.13,6.0543]
[1752506280734,6.0536,165.15,165.12,6.0545]
[1752506280933,6.0536,165.15,165.09,7.527294]
[1752506281436,7.527294,165.19,165.09,7.527294]
[1752506281437,6.0534,165.16,165.09,7.527294]
[1752506281832,6.0537,165.15,165.12,6.0544]
[1752506282332,184.56,165.14,165.05,5.01984902]
[1752506282539,7.53575556,165.13,165.05,5.01984902]
[1752506282734,7.53575556,165.13,165.03,7.53575556]
[1752506282940,6.0563,165.08,165.04,6.0574]
[1752506283143,7.53575556,165.13,165.03,7.53575556]
[1752506283741,6.0561,165.09,165.03,7.53575556]
[1752506284138,192.09575556,165.14,165.01,0.11795559]
[1752506284139,7.53575556,165.1,165.01,0.11795559]
[1752506284746,13.59145556,165.1,165.01,0.11795559]
[1752506284947,7.53575556,165.1,165.01,0.11795559]
[1752506285345,6.0562,165.08,165.01,0.11795559]
[1752506285545,7.53575556,165.1,165.01,0.11795559]
[1752506286645,7.54027846,165.07,165.01,0.11795559]
[1752506287656,7.54027846,165.09,165.01,0.11795559]
[1752506288451,7.54027846,165.04,165.01,0.11795559]
[1752506288652,7.54027846,165.02,165.01,0.11795559]
[1752506288854,25.71027846,165.1,165.01,0.11795559]
[1752506289055,7.54027846,165.02,165.01,0.11795559]
[1752506289453,13.59867846,165.02,165.01,0.11795559]
[1752506289856,7.54027846,165.02,164.9,7.54027846]
[1752506290051,7.54027846,165.02,164.8,31.80577846]
[1752506290052,7.55143523,164.91,164.83,5.01984902]
[1752506290351,7.55143523,164.89,164.77,7.55143523]
[1752506290561,7.55143523,164.87,164.77,7.55143523]
[1752506290857,523.22,164.95,164.79,7.55143523]
[1752506291149,523.22,164.95,164.72,1.05576118]
[1752506291354,523.22,164.95,164.75,7.55356736]
[1752506291355,7.55356736,164.9,164.75,7.55356736]
[1752506291556,7.55823957,164.91,164.8,7.55823957]
[1752506292058,7.55823957,164.94,164.82,7.55823957]
[1752506292353,7.55363296,164.89,164.71,520.36421286]
[1752506292552,7.55363296,164.89,164.84,6.0649]
[1752506292759,7.55363296,164.89,164.78,7.55363296]
[1752506292953,7.55363296,164.89,164.8,7.55363296]
[1752506293155,7.55363296,164.89,164.74,12.1371]
[1752506293460,7.55363296,164.87,164.78,7.55363296]
[1752506293654,7.55363296,164.87,164.71,520.36421286]
[1752506293854,7.55363296,164.87,164.76,7.55363296]
[1752506294055,7.55363296,164.87,164.83,6.0653]
[1752506294258,7.55363296,164.88,164.71,520.36421286]
[1752506294451,7.55363296,164.88,164.33,53.95335226]
[1752506294452,7.55363296,164.82,164.65,523.56]
[1752506294658,7.55363296,164.78,164.65,523.56]
[1752506294856,7.55363296,164.76,164.65,523.56]
[1752506295056,7.55363296,164.76,164.66,7.55363296]
[1752506295261,541.73,164.85,164.68,7.55363296]
[1752506295457,186.98,164.8,164.68,7.55363296]
[1752506295663,7.55363296,164.74,164.65,531.11363296]
[1752506295861,186.98,164.8,164.67,7.55363296]
[1752506296059,186.98,164.8,164.65,523.56]
[1752506296060,13.62163296,164.76,164.71,6.0697]
[1752506296365,7.55363296,164.74,164.64,7.55363296]
[1752506296553,7.55363296,164.72,164.62,7.55363296]
[1752506296752,7.55363296,164.71,164.61,7.55363296]
[1752506296956,7.55363296,164.8,164.63,7.55363296]
[1752506296957,7.55363296,164.73,164.63,7.55363296]
[1752506297157,7.55363296,164.73,164.57,1.05686736]
[1752506297363,7.55363296,164.71,164.61,7.55363296]
[1752506297662,7.55363296,164.69,164.59,7.55363296]
[1752506297858,7.55363296,164.69,164.64,6.0723]
[1752506298055,7.55363296,164.69,164.56,523.56]
[1752506298255,523.82,164.75,164.56,523.56]
[1752506298464,7.55363296,164.73,164.63,7.55363296]
[1752506298760,7.55363296,164.71,164.61,7.55363296]
[1752506299265,6.0702,164.7,164.56,523.56]
[1752506299458,7.55363296,164.68,164.58,7.55363296]
[1752506299756,529.8886,164.75,164.69,6.0702]
[1752506299958,531.37363296,164.75,164.66,7.55363296]
[1752506300156,523.82,164.75,164.66,7.55363296]
[1752506300361,7.55363296,164.79,164.77,6.0676]
[1752506300563,7.55363296,164.79,164.6,7.55363296]
[1752506300564,7.55363296,164.81,164.6,7.55363296]
[1752506300762,7.55363296,164.81,164.7,7.55363296]
[1752506300960,187.54,164.82,164.7,7.55363296]
[1752506301156,7.55363296,164.82,164.74,7.55363296]
[1752506301459,531.63363296,164.84,164.76,7.55363296]
[1752506301659,187.56,164.91,164.78,7.55363296]
[1752506301958,6.0625,164.91,164.78,7.55363296]
[1752506302164,6.0625,164.91,164.8,7.55363296]
[1752506302360,7.55363296,164.91,164.82,7.55363296]
[1752506302866,7.55363296,164.89,164.72,12.1384]
[1752506303069,6.0631,164.9,164.84,6.0647]
[1752506303360,12.63284599,164.91,164.78,12.63284599]
[1752506303564,6.0629,164.9,164.78,12.63284599]
[1752506303764,12.63284599,164.91,164.78,12.63284599]
[1752506304064,12.63284599,164.91,164.84,6.0647]
[1752506304265,12.63284599,164.91,164.73,187.56]
[1752506304463,12.63284599,164.88,164.76,12.63284599]
[1752506304864,12.63284599,164.85,164.73,200.19284599]
[1752506305066,6.065,164.84,164.73,200.19284599]
[1752506305467,200.23284599,164.85,164.71,12.63284599]
[1752506305662,12.63284599,164.82,164.71,12.63284599]
[1752506307459,542.25,164.92,164.74,12.63284599]
[1752506307668,12.63284599,164.87,164.74,12.63284599]
[1752506307871,12.63284599,164.87,164.66,524.08]
[1752506308167,6.0657,164.83,164.73,12.63284599]
[1752506308368,12.63284599,164.84,164.73,12.63284599]
[1752506308770,12.63284599,164.87,164.73,12.63284599]
[1752506308967,6.0658,164.82,164.77,6.0675]
[1752506309167,12.63284599,164.87,164.73,12.63284599]
[1752506309571,6.0649,164.85,164.8,6.0664]
[1752506309771,200.29284599,164.9,164.76,12.63284599]
[1752506309971,12.63284599,164.9,164.69,12.1407]
[1752506310172,6.0639,164.87,164.82,6.0656]
[1752506310374,200.29284599,164.9,164.82,6.0656]
[1752506310574,187.66,164.9,164.79,12.63284599]
[1752506311175,6.0634,164.89,164.84,6.0646]
[1752506311473,187.66,164.9,164.82,12.63284599]
[1752506312066,187.66,164.9,164.79,12.63284599]
[1752506312268,12.63284599,164.88,164.66,723.7233]
[1752506312467,12.63284599,164.85,164.73,12.63284599]
[1752506312872,12.63284599,164.85,164.66,711.58]
[1752506312873,12.63284599,164.85,164.71,12.63284599]
[1752506313064,6.0669,164.79,164.74,6.0686]
[1752506313269,6.0669,164.79,164.71,12.63284599]
[1752506313465,6.0669,164.79,164.74,6.0684]
[1752506313674,6.0662,164.81,164.71,12.63284599]
[1752506313979,6.0662,164.81,164.75,6.068]
[1752506314271,18.17,164.85,164.71,12.63284599]
[1752506314476,12.63284599,164.84,164.71,12.63284599]
[1752506314679,12.64204391,164.86,164.73,12.64204391]
[1752506315181,187.48,164.89,164.76,12.64204391]
[1752506315382,200.12204391,164.89,164.76,12.64204391]
[1752506315681,12.64204391,164.89,164.84,6.065]
[1752506315875,724.18204391,164.92,164.79,12.64204391]
[1752506316076,724.18204391,164.92,164.73,12.1375]
[1752506316077,711.54,164.92,164.82,12.64204391]
[1752506316376,711.54,164.92,164.85,6.0643]
[1752506316677,711.54,164.92,164.81,12.62938509]
[1752506316874,711.54,164.92,164.83,6.0653]
[1752506317078,711.54,164.92,164.73,12.1375]
[1752506317278,12.62938509,164.9,164.77,12.62938509]
[1752506317475,6.0646,164.86,164.81,6.066]
[1752506317682,12.62938509,164.9,164.77,12.62938509]
[1752506317981,711.54,164.92,164.8,12.62938509]
[1752506318377,724.16938509,164.92,164.83,6.0652]
[1752506318577,711.54,164.92,164.81,12.63035637]
[1752506318772,711.54,164.92,164.78,12.63017918]
[1752506318980,12.63017918,164.91,164.81,6.066]
[1752506319380,12.63017918,164.91,164.69,187.4]
[1752506319683,12.63017918,164.88,164.75,12.63017918]
[1752506320079,6.0655,164.83,164.75,12.63017918]
[1752506320276,12.63017918,164.88,164.75,12.63017918]
[1752506320676,12.63017918,164.88,164.79,6.0668]
[1752506320884,12.63017918,164.88,164.75,12.63017918]
[1752506321279,6.0653,164.84,164.8,6.0664]
[1752506321483,12.63735067,164.89,164.76,12.63735067]
[1752506321685,187.22,164.88,164.76,12.63735067]
[1752506321880,524.08,164.92,164.79,12.63735067]
[1752506322381,12.63735067,164.91,164.79,12.63735067]
[1752506323286,6.0635,164.88,164.84,6.0649]
[1752506323481,524.08,164.92,164.82,12.63735067]
[1752506324387,6.064,164.87,164.83,6.0651]
[1752506324589,524.08,164.92,164.82,12.63735067]
[1752506325383,524.08,164.92,164.88,6.0635]
[1752506325579,524.08,164.92,164.82,12.63735067]
[1752506325780,524.08,164.92,164.83,12.63735067]
[1752506326286,524.08,164.92,164.81,12.62688151]
[1752506326790,536.70688151,164.92,164.81,12.62688151]
[1752506326990,536.70688151,164.92,164.76,524.16]
[1752506327188,536.70688151,164.92,164.79,12.62688151]
[1752506327587,536.70688151,164.92,164.76,524.16]
[1752506327894,12.62688151,164.86,164.75,12.62688151]
[1752506328186,6.0665,164.8,164.76,6.0677]
[1752506328583,6.0665,164.8,164.73,12.62688151]
[1752506328782,6.0672,164.79,164.73,12.62688151]
[1752506328989,186.9,164.85,164.68,524.12]
[1752506329194,186.9,164.85,164.7,12.64588794]
[1752506329195,12.64588794,164.83,164.7,12.64588794]
[1752506329987,6.0677,164.77,164.73,6.0689]
[1752506330182,12.64588794,164.83,164.7,12.64588794]
[1752506330388,12.64588794,164.83,164.75,6.0683]
[1752506330588,12.64588794,164.83,164.7,12.64588794]
[1752506330992,6.0662,164.81,164.73,12.64588794]
[1752506331188,186.9,164.85,164.73,12.64588794]
[1752506331394,199.54249617,164.85,164.72,12.64249617]
[1752506331587,6.0669,164.79,164.75,6.0681]
[1752506332093,6.0666,164.8,164.76,6.0679]
[1752506332296,2.26696118,164.84,164.72,12.64249617]
[1752506332591,6.0663,164.81,164.77,6.0675]
[1752506332792,186.9,164.85,164.75,12.64249617]
[1752506333589,186.9,164.85,164.78,12.64249617]
[1752506333791,205.01,164.89,164.81,6.0659]
[1752506333992,2.20217539,164.88,164.78,12.64249617]
[1752506334386,6.0649,164.85,164.78,12.64249617]
[1752506334992,2.20217539,164.87,164.78,12.64249617]
[1752506335692,2.20217539,164.87,164.76,6.64128069]
[1752506335897,2.20217539,164.91,164.83,12.62911443]
[1752506336092,6.0638,164.88,164.83,12.62911443]
[1752506336701,2.20217539,164.91,164.83,12.62911443]
[1752506336702,2.20821697,164.91,164.83,12.62911443]
[1752506337197,6.063,164.9,164.86,6.0642]
[1752506337797,6.0632,164.89,164.86,6.0642]
[1752506338002,2.20821697,164.91,164.8,12.62757368]
[1752506338390,14.83579065,164.91,164.8,12.62757368]
[1752506338590,14.83579065,164.91,164.82,6.0655]
[1752506338799,14.83579065,164.91,164.8,12.62757368]
[1752506339197,14.83579065,164.91,164.75,6.64128069]
[1752506339401,14.83579065,164.91,164.77,12.62757368]
[1752506339702,14.83579065,164.91,164.8,12.62757368]
[1752506339994,6.0636,164.88,164.8,12.62757368]
[1752506340195,2.20821697,164.91,164.8,12.62757368]
[1752506340501,2.20821697,164.91,164.89,6.0631]
[1752506340699,2.20821697,164.91,164.86,12.62757368]
[1752506340905,524.08,164.92,164.84,12.62757368]
[1752506341094,6.063,164.9,164.86,6.064]
[1752506341296,524.08,164.92,164.81,12.62757368]
[1752506341689,6.0639,164.88,164.84,6.065]
[1752506341895,2.20922749,164.91,164.81,12.62757368]
[1752506342188,6.0651,164.84,164.77,12.62757368]
[1752506342396,186.38,164.88,164.77,12.62757368]
[1752506342898,6.065,164.85,164.77,12.62757368]
[1752506343194,186.38,164.88,164.75,6.64128069]
[1752506343398,193.93855291,164.88,164.8,6.0662]
[1752506343701,2.21210706,164.87,164.74,6.64128069]
[1752506343894,2.21210706,164.87,164.79,7.5593559]
[1752506344093,186.38,164.88,164.79,7.5593559]
[1752506344601,6.0643,164.86,164.79,7.5593559]
[1752506344797,2.19425394,164.87,164.79,7.5593559]
[1752506345103,186.38,164.88,164.76,6.64128069]
[1752506345402,2.19550266,164.87,164.76,12.63562886]
[1752506346993,12.63562886,164.86,164.73,19.27690955]
[1752506347195,2.19550266,164.87,164.73,12.64118624]
[1752506347497,186.08,164.86,164.76,12.64118624]
[1752506347999,192.1446,164.86,164.82,6.0656]
[1752506348193,186.08,164.86,164.79,12.64118624]
[1752506349094,186.08,164.86,164.83,6.0651]
[1752506350095,186.08,164.86,164.79,12.64118624]
[1752506350299,186.08,164.86,164.82,12.64118624]
[1752506350501,186.12,164.91,164.82,12.64118624]
[1752506350994,2.19601663,164.9,164.82,12.64118624]
[1752506351200,186.12,164.91,164.85,6.0646]
[1752506351397,2.19651208,164.9,164.85,6.0646]
[1752506351597,186.12,164.91,164.82,12.64118624]
[1752506351796,186.12,164.91,164.87,6.0637]
[1752506351994,186.12,164.91,164.8,5.09037054]
[1752506352194,6.0613,164.94,164.91,6.0622]
[1752506352403,192.67927585,164.98,164.88,12.64118624]
[1752506352702,6.0607,164.96,164.92,6.0617]
[1752506352897,2.19652512,164.97,164.9,12.64118624]
[1752506353100,2.19652512,164.97,164.93,12.64118624]
[1752506353396,2.19670113,165.02,164.88,17.73155678]
[1752506353593,2.19670113,165.02,164.96,12.64118624]
[1752506355202,186.02,165.03,164.96,12.64118624]
[1752506355689,186.02,165.03,164.95,12.64118624]
[1752506356104,186.02,165.03,165.0,6.059]
[1752506356291,186.02,165.03,164.98,12.64118624]
[1752506356697,12.64118624,165.1,164.98,12.64118624]
[1752506356896,185.76,165.09,164.98,12.64118624]
[1752506357098,2.18982072,165.08,164.98,12.64118624]
[1752506357297,2.18720619,165.08,164.99,6.0591]
[1752506357603,2.18720619,165.08,164.93,5.09037054]
[1752506357803,6.0579,165.04,164.99,18.66261802]
[1752506358107,185.76,165.09,164.96,12.60331802]
[1752506358402,12.60331802,165.07,164.93,12.60331802]
[1752506358806,12.60331802,165.07,164.95,6.0607]
[1752506358995,203.93,165.09,164.93,12.60331802]
[1752506359302,12.60331802,165.05,164.93,12.60331802]
[1752506359806,12.60331802,165.05,164.91,5.09037054]
[1752506359807,12.60331802,165.02,164.9,5.09037054]
[1752506360009,185.68,165.01,164.89,17.69368856]
[1752506360302,185.68,165.01,164.92,6.0618]
[1752506360498,185.68,165.01,164.89,12.60331802]
[1752506360898,185.68,165.01,164.92,6.0619]
[1752506361407,6.0603,164.97,164.93,6.0614]
[1752506361801,185.68,165.01,164.92,6.062]
[1752506362005,12.60331802,164.99,164.86,12.60331802]
[1752506362506,6.0616,164.94,164.86,12.60331802]
[1752506362805,12.60331802,164.99,164.89,12.60331802]
[1752506363107,12.60331802,164.99,164.87,12.60331802]
[1752506363609,12.60331802,164.99,164.85,12.60331802]
[1752506363909,12.60331802,164.93,164.83,5.09037054]
[1752506364207,198.08331802,164.93,164.83,5.09037054]
[1752506364398,198.08331802,164.93,164.82,5.09037054]
[1752506364599,185.48,164.93,164.84,12.60331802]
[1752506365709,6.0622,164.92,164.88,6.0634]
[1752506365909,185.48,164.93,164.84,12.60331802]
[1752506366112,185.6,164.98,164.87,12.60331802]
[1752506366414,185.6,164.98,164.91,6.0621]
[1752506366809,6.0606,164.96,164.91,6.0621]
[1752506367007,185.6,164.98,164.91,6.0621]
[1752506367206,185.6,164.98,164.9,12.60331802]
[1752506368101,6.0603,164.97,164.92,6.0619]
[1752506368305,185.6,164.98,164.9,12.60331802]
[1752506369106,185.6,164.98,164.87,12.60331802]
[1752506369311,6.0616,164.94,164.89,6.0629]
[1752506369514,6.0616,164.94,164.87,12.60331802]
[1752506369712,185.6,164.98,164.87,12.60331802]
[1752506370017,6.0611,164.95,164.87,12.60331802]
[1752506370316,6.0615,164.94,164.87,12.60331802]
[1752506370611,185.6,164.98,164.83,523.9]
[1752506370810,6.0608,164.96,164.89,12.60331802]
[1752506371310,185.6,164.98,164.89,12.60331802]
[1752506371904,6.063,164.9,164.86,6.0642]
[1752506372105,12.60331802,164.93,164.82,12.60331802]
[1752506372306,198.20331802,164.98,164.85,12.60331802]
[1752506372510,185.4,164.97,164.85,12.60331802]
[1752506372715,185.4,164.97,164.84,12.60331802]
[1752506373114,185.4,164.97,164.87,6.0639]
[1752506373811,6.0623,164.92,164.88,6.0634]
[1752506374013,185.4,164.97,164.84,12.60331802]
[1752506374910,185.4,164.97,164.87,12.60331802]
[1752506375316,185.4,164.97,164.9,12.60331802]
[1752506375616,523.86,165.01,164.93,12.60331802]
[1752506376521,6.0591,165.0,164.93,12.60331802]
[1752506377014,523.86,165.01,164.93,12.60331802]
[1752506377207,523.86,165.01,164.88,5.09037054]
[1752506377409,523.86,165.01,164.85,536.0288]
[1752506377410,523.86,165.01,164.87,5.09037054]
[1752506377614,12.60331802,165.0,164.87,12.60331802]
[1752506378315,536.46331802,165.01,164.87,12.60331802]
[1752506378514,536.46331802,165.01,164.91,6.0621]
[1752506378815,536.46331802,165.01,164.87,12.60331802]
[1752506379010,523.86,165.01,164.87,12.60331802]
[1752506379216,523.86,165.01,164.92,12.61756831]
[1752506379217,185.26,165.0,164.92,12.61756831]
[1752506379818,185.26,165.0,164.9,12.61493972]
[1752506381717,185.26,165.0,164.93,6.0617]
[1752506382314,6.062,164.93,164.87,12.61493972]
[1752506382513,197.87493972,165.0,164.87,12.61493972]
[1752506382912,197.87493972,165.0,164.9,6.0627]
[1752506383114,12.61493972,164.97,164.85,536.51493972]
[1752506383913,6.0617,164.93,164.9,6.0625]
[1752506384621,6.0621,164.92,164.89,6.063]
[1752506385119,12.61493972,164.97,164.81,5.09037054]
[1752506385418,12.61493972,164.91,164.8,5.09037054]
[1752506385620,185.26,164.96,164.77,530.48128069]
[1752506385621,12.61493972,164.89,164.79,5.09037054]
[1752506385812,185.26,164.88,164.79,5.09037054]
[1752506386011,185.26,164.88,164.78,5.09037054]
[1752506386210,12.61493972,164.86,164.74,17.70531026]
[1752506386422,12.61493972,164.86,164.74,12.61493972]
[1752506386720,6.0657,164.83,164.79,6.0667]
[1752506386921,6.0657,164.83,164.74,12.61493972]
[1752506387222,12.63852737,164.88,164.75,12.63852737]
[1752506387522,185.28,164.85,164.81,6.0658]
[1752506387719,185.28,164.85,164.75,12.63852737]
[1752506388320,6.0641,164.87,164.83,6.0651]
[1752506388717,185.28,164.89,164.78,12.63852737]
[1752506389024,185.28,164.89,164.81,12.63852737]
[1752506389424,6.0636,164.88,164.84,6.0649]
[1752506389722,709.14,164.91,164.81,12.63852737]
[1752506390221,709.14,164.91,164.78,5.09037054]
[1752506390522,721.77852737,164.91,164.79,12.63852737]
[1752506390724,6.064,164.87,164.83,6.0653]
[1752506390922,6.064,164.87,164.79,12.63852737]
[1752506391314,6.0637,164.88,164.79,12.63852737]
[1752506391518,709.14,164.91,164.79,12.63852737]
[1752506392220,12.63852737,164.89,164.75,12.63852737]
[1752506392618,185.3,164.88,164.75,12.63852737]
[1752506393220,185.3,164.87,164.78,12.63852737]
[1752506393922,6.0643,164.86,164.82,6.0655]
[1752506394825,6.0646,164.85,164.74,5.09037054]
[1752506395124,185.3,164.87,164.76,12.63484202]
[1752506395322,185.3,164.87,164.79,12.63484202]
[1752506395522,191.3642,164.87,164.79,12.63484202]
[1752506395822,185.3,164.87,164.78,12.63484202]
[1752506396024,191.3642,164.87,164.78,12.63484202]
[1752506396822,191.3842,164.87,164.78,12.63484202]
[1752506397023,6.0643,164.86,164.78,12.63484202]
[1752506397218,6.0643,164.86,164.82,6.0655]
[1752506397624,6.0648,164.85,164.74,5.09037054]
[1752506397825,6.0648,164.85,164.81,6.0658]
[1752506398422,185.32,164.87,164.76,12.63484202]
[1752506398821,185.32,164.87,164.8,6.0662]
[1752506399022,197.95484202,164.87,164.73,17.72521256]
[1752506399428,185.32,164.86,164.77,12.64053267]
[1752506400130,6.0649,164.85,164.77,12.64053267]
[1752506400332,185.32,164.86,164.77,12.64053267]
[1752506400826,523.84,164.91,164.8,12.64053267]
[1752506401032,191.3829,164.9,164.83,7.55550437]
[1752506401330,185.32,164.9,164.83,7.55550437]
[1752506401529,185.32,164.9,164.88,6.0635]
[1752506401822,185.32,164.9,164.71,6.64128069]
[1752506401823,185.32,164.94,164.85,7.55550437]
[1752506402229,6.0623,164.92,164.89,6.0632]
[1752506402433,7.55550437,164.96,164.8,12.61805026]
[1752506402631,7.55550437,164.96,164.86,7.55550437]
[1752506402931,185.32,164.95,164.89,6.0631]
[1752506403127,185.32,164.95,164.85,12.62384969]
[1752506403533,185.32,164.95,164.85,12.62285425]
[1752506404030,6.0619,164.93,164.9,6.0625]
[1752506404840,6.0615,164.94,164.91,6.0624]
[1752506405027,185.32,164.95,164.85,12.62285425]
[1752506405833,185.32,164.95,164.83,12.62285425]
[1752506406135,197.94285425,164.95,164.83,12.62285425]
[1752506406840,197.94285425,164.95,164.79,17.19594589]
[1752506407038,197.94285425,164.95,164.81,12.62285425]
[1752506407339,12.62285425,164.92,164.81,12.62285425]
[1752506407840,12.62285425,164.92,164.84,6.0648]
[1752506408142,12.62285425,164.92,164.78,12.62285425]
[1752506408331,6.0645,164.86,164.83,6.0652]
[1752506408534,185.28,164.88,164.78,12.62285425]
[1752506408939,191.3439,164.88,164.78,12.62285425]
[1752506409136,185.28,164.88,164.78,12.62285425]
[1752506409635,6.0641,164.87,164.83,6.0651]
[1752506409835,185.28,164.88,164.78,12.62285425]
[1752506410031,6.0644,164.86,164.78,12.62285425]
[1752506410339,185.28,164.88,164.78,12.62285425]
[1752506410538,185.28,164.88,164.82,6.0654]
[1752506410839,197.90285425,164.88,164.76,12.62285425]
[1752506411040,197.90285425,164.88,164.81,6.0659]
[1752506411234,197.90285425,164.88,164.76,12.62285425]
[1752506411733,6.0656,164.83,164.76,12.62285425]
[1752506411932,197.90285425,164.88,164.76,12.62285425]
[1752506412337,6.0651,164.84,164.81,6.0661]
[1752506412638,185.28,164.88,164.77,12.63678762]
[1752506412935,185.28,164.88,164.81,6.0659]
[1752506413141,185.28,164.88,164.77,12.63678762]
[1752506413440,12.63678762,164.86,164.72,5.06254589]
[1752506413741,12.63678762,164.86,164.74,12.63678762]
[1752506415245,12.63678762,164.87,164.74,12.63678762]
[1752506415439,185.28,164.88,164.77,12.63678762]
[1752506415643,6.0648,164.85,164.82,6.0654]
[1752506415938,185.28,164.88,164.82,6.0654]
[1752506416540,197.91719478,164.88,164.75,12.63719478]
[1752506416836,216.08719478,164.88,164.75,12.63719478]
[1752506417242,12.63719478,164.85,164.72,5.06254589]
[1752506417442,12.63719478,164.82,164.69,528.90254589]
[1752506417643,6.0663,164.81,164.69,536.47719478]
[1752506417844,185.28,164.82,164.71,12.63719478]
[1752506418935,197.91719478,164.82,164.71,12.63719478]
[1752506419338,185.28,164.82,164.71,12.63719478]
[1752506419547,185.28,164.82,164.69,528.90254589]
[1752506419548,185.28,164.82,164.7,12.63719478]
[1752506419743,197.91719478,164.82,164.7,12.63719478]
[1752506420247,197.91719478,164.82,164.68,197.91719478]
[1752506420950,185.28,164.82,164.68,197.91719478]
[1752506421240,197.91719478,164.82,164.68,197.91719478]
[1752506421647,6.0678,164.77,164.73,6.0687]
[1752506422149,6.0682,164.76,164.68,185.28]
[1752506422345,12.63719478,164.79,164.68,185.28]
[1752506422947,185.28,164.82,164.68,197.91719478]
[1752506423149,185.28,164.82,164.71,12.63719478]
[1752506423652,185.28,164.82,164.74,12.63719478]
[1752506423852,6.0639,164.87,164.83,6.0653]
[1752506424051,185.28,164.88,164.77,12.63719478]
[1752506424954,185.28,164.88,164.79,7.55883709]
[1752506425454,6.0643,164.86,164.83,6.0653]
[1752506425654,185.28,164.88,164.79,7.55883709]
[1752506426157,185.28,164.88,164.81,7.55883709]
[1752506426656,191.3437,164.88,164.85,6.0646]
[1752506426860,185.28,164.88,164.81,7.55883709]
[1752506427245,191.3437,164.88,164.81,7.55883709]
[1752506427553,185.28,164.88,164.81,7.55883709]
[1752506427749,7.55422595,164.95,164.86,7.55422595]
[1752506427946,649.17455474,164.98,164.88,7.55422595]
[1752506428255,6.061,164.95,164.91,6.062]
[1752506428451,185.26,164.97,164.88,7.55422595]
[1752506428654,185.26,164.97,164.9,7.55422595]
[1752506428853,191.3204,164.97,164.93,6.0614]
[1752506429053,185.26,164.97,164.9,7.55422595]
[1752506429650,7.55422595,165.04,164.94,7.55422595]
[1752506429956,191.2985,165.02,164.94,7.55422595]
[1752506430558,6.0585,165.02,164.94,7.55422595]
[1752506430759,6.0588,165.01,164.94,7.55422595]
[1752506431153,185.24,165.03,164.94,7.55422595]
[1752506431756,6.059,165.01,164.94,7.55422595]
[1752506432255,185.24,165.03,164.94,7.55422595]
[1752506432452,185.24,165.03,164.88,5.06254589]
[1752506432654,185.24,165.03,164.92,7.55422595]
[1752506432848,6.0595,164.99,164.94,6.061]
[1752506433053,185.24,165.03,164.92,7.55422595]
[1752506433850,7.55422595,165.02,164.91,7.55422595]
[1752506434054,7.55422595,165.02,164.93,6.0613]
[1752506434559,6.0601,164.98,164.94,6.0612]
[1752506434964,7.55422595,165.02,164.93,7.55422595]